fUSD/lending_fUSD_20250124
["ID","MTS","AMOUNT","RATE_DAILY","PERIOD"]
[350247864,1737735077311,-500.0,0.00019789,2]
[350247865,1737735077321,-798.82,0.00019789,2]
[350247866,1737735077460,-652.05,0.00019789,2]
[350247867,1737735077471,-846.33,0.00019789,2]
[350247868,1737735077481,-770.06,0.00019789,2]
[350247869,1737735077491,-937.47,0.00019789,2]
[350247870,1737735077503,-672.05,0.00019789,2]
[350247871,1737735077513,-500.0,0.00019789,2]
[350247872,1737735077523,-692.99,0.00019789,2]
[350247873,1737735077532,-500.0,0.00019789,2]
[350247874,1737735077542,-500.0,0.00019789,2]
[350247875,1737735077551,-500.0,0.00019789,2]
[350247876,1737735077560,-500.0,0.00019789,2]
[350247877,1737735077571,-1011.61,0.00019789,2]
[350247878,1737735077580,-500.0,0.00019789,2]
[350247879,1737735077589,-500.0,0.00019789,2]
[350247880,1737735077599,-500.0,0.00019789,2]
[350247881,1737735077609,-954.97,0.00019789,2]
[350247882,1737735077618,-594.05,0.00019789,2]
[350247883,1737735077628,-614.05,0.00019789,2]
[350247884,1737735077637,-652.47,0.00019789,2]
[350247885,1737735077647,-500.0,0.00019789,2]
[350247886,1737735077657,-849.3,0.00019789,2]
[350247887,1737735077666,-708.17,0.00019789,2]
[350247888,1737735077676,-511.38,0.00019789,2]
[350247889,1737735077686,-833.01,0.00019789,2]
[350247890,1737735077695,-681.69,0.00019789,2]
[350247891,1737735077705,-560.31,0.00019789,2]
[350247892,1737735077715,-500.0,0.00019789,2]
[350247893,1737735077724,-805.26,0.00019789,2]
[350247894,1737735077734,-697.85,0.00019789,2]
[350247895,1737735077744,-500.0,0.00019789,2]
[350247896,1737735077755,-500.0,0.00019789,2]
[350247897,1737735077765,-580.02,0.00019789,2]
[350247898,1737735077774,-500.0,0.00019789,2]
[350247899,1737735077784,-669.97,0.00019789,2]
[350247900,1737735077794,-500.0,0.00019789,7]
[350247901,1737735077803,-500.0,0.00019789,2]
[350247902,1737735077813,-500.0,0.00019789,2]
[350247903,1737735077823,-556.37,0.00019789,2]
[350247904,1737735077835,-500.0,0.00019789,2]
[350247905,1737735077845,-500.0,0.00019789,2]
[350247906,1737735077855,-1151.25,0.00019789,2]
[350247907,1737735077865,-582.4,0.00019789,2]
[350247908,1737735077879,-500.0,0.00019789,2]
[350247909,1737735077889,-1417.9,0.00019789,2]
[350247910,1737735077899,-656.44,0.00019789,2]
[350247911,1737735077909,-582.99,0.00019789,2]
[350247912,1737735077919,-544.3,0.00019789,2]
[350247913,1737735077929,-500.0,0.00019789,2]
[350247914,1737735077940,-1083.19,0.00019789,2]
[350247915,1737735077949,-634.65,0.00019789,2]
[350247916,1737735077958,-1858.23,0.00019789,2]
[350247917,1737735077969,-516.81,0.00019789,2]
[350247918,1737735077979,-1003.94,0.00019789,2]
[350247919,1737735077989,-500.0,0.00019789,2]
[350247920,1737735078000,-695.07,0.00019789,2]
[350247921,1737735078010,-530.99,0.00019789,2]
[350247922,1737735078020,-4029.1,0.00019789,2]
[350247923,1737735078030,-500.0,0.00019789,2]
[350247924,1737735078040,-1624.84,0.00019789,2]
[350247925,1737735078050,-672.83,0.00019789,2]
[350247926,1737735078060,-500.0,0.00019789,2]
[350247927,1737735078070,-2230.2,0.00019789,2]
[350247928,1737735078080,-500.0,0.00019789,2]
[350247929,1737735078090,-500.0,0.00019789,2]
[350247930,1737735078100,-559.05,0.00019789,2]
[350247931,1737735078110,-1209.66,0.00019789,2]
[350247932,1737735078120,-1414.61,0.00019789,2]
[350247933,1737735078130,-500.0,0.00019789,2]
[350247934,1737735078140,-500.0,0.00019789,2]
[350247935,1737735078151,-3342.18,0.00019789,2]
[350247936,1737735078162,-500.0,0.00019789,2]
[350247937,1737735078174,-2092.8,0.00019789,2]
[350247938,1737735078185,-500.0,0.00019789,2]
[350247939,1737735078195,-521.83,0.00019789,2]
[350247940,1737735078206,-1013.22,0.00019789,2]
[350247941,1737735078216,-500.0,0.00019789,2]
[350247942,1737735078227,-500.0,0.00019789,2]
[350247943,1737735078238,-926.77,0.00019789,2]
[350247944,1737735078251,-500.0,0.00019789,2]
[350247945,1737735078261,-926.0,0.00019789,2]
[350247946,1737735078272,-6114.66,0.00019789,2]
[350247947,1737735078282,-500.0,0.0001979,2]
[350247948,1737735078292,-500.0,0.0001979,2]
[350247949,1737735078301,-500.0,0.0001979,2]
[350247950,1737735078311,-500.0,0.0001979,2]
[350247951,1737735078321,-747.3,0.0001979,2]
[350247952,1737735078331,-578.69,0.0001979,2]
[350247953,1737735078342,-550.89,0.0001979,2]
[350247954,1737735078352,-500.0,0.0001979,2]
[350247955,1737735078361,-500.0,0.0001979,2]
[350247956,1737735078371,-500.0,0.0001979,2]
[350247957,1737735078381,-1125.44537269,0.00019796,2]
[350247958,1737735078391,-150.0,0.000198,4]
[350247959,1737735078400,-3418.14208895,0.000198,2]
[350247960,1737735078410,-160.130827,0.000198,15]
[350247961,1737735078420,-1092.63945513,0.00019807,2]
[350247962,1737735078429,-1105.82390084,0.00019807,2]
[350247963,1737735078439,-500.0,0.0001981,2]
[350247964,1737735078449,-15665.1286326,0.0001982,2]
[350247965,1737735078459,-189.68605649,0.00019821,2]
[350247966,1737735078469,-377.81072696,0.00019826,2]
[350247967,1737735078480,-500.0,0.00019826,2]
[350247968,1737735078491,-798.61,0.00019826,2]
[350247969,1737735078503,-2156.11,0.00019826,2]
[350247970,1737735078514,-500.0,0.00019826,2]
[350247971,1737735078525,-927.0,0.00019826,2]
[350247972,1737735078535,-500.0,0.00019826,2]
[350247973,1737735078545,-544.0,0.00019826,2]
[350247974,1737735078555,-500.0,0.00019826,2]
[350247975,1737735078566,-517.74,0.00019826,2]
[350247976,1737735078576,-1223.83,0.00019826,2]
[350247977,1737735078587,-1716.18,0.00019826,2]
[350247978,1737735078597,-1769.78,0.00019826,2]
[350247979,1737735078607,-617.72,0.00019826,2]
[350247980,1737735078616,-3582.9,0.00019826,2]
[350247981,1737735078627,-6343.0,0.00019826,2]
[350247982,1737735078637,-851.26,0.00019826,2]
[350247983,1737735078647,-592.94,0.00019826,2]
[350247984,1737735078658,-500.0,0.00019826,2]
[350247985,1737735078669,-805.09,0.00019826,2]
[350247986,1737735078679,-1086.75,0.00019826,2]
[350247987,1737735078690,-1200.3,0.00019826,2]
[350247988,1737735078701,-500.0,0.00019826,2]
[350247989,1737735078711,-1000.0,0.00019826,2]
[350247990,1737735078722,-623.66119626,0.00019831,2]
[350247991,1737735078732,-322.28,0.00019833,2]
[350247992,1737735078742,-500.0,0.00019834,2]
[350247993,1737735078753,-150.0,0.00019843,4]
[350247994,1737735078764,-150.0,0.00019844,4]
[350247995,1737735078773,-261.32494258,0.00019854,2]
[350247996,1737735078783,-21080.07698603,0.00019872,2]
[350247997,1737735078793,-54230.32756771,0.0001988,2]
[350247998,1737735078803,-150.0,0.00019886,4]
[350247999,1737735078813,-348.52435109,0.000199,5]
[350248000,1737735078823,-208186.17675226,0.000199,7]
[350248001,1737735078832,-421.76181,0.000199,2]
[350248002,1737735078842,-444.50466,0.000199,2]
[350248003,1737735078852,-444.50466,0.000199,2]
[350248004,1737735078862,-1619.13994602,0.000199,3]
[350248005,1737735078871,-23494.55461475,0.000199,7]
[350248006,1737735078883,-403.07759596,0.000199,2]
[350248007,1737735078894,-403.07759596,0.000199,2]
[350248008,1737735078905,-403.07759596,0.000199,2]
[350248009,1737735078915,-403.07759596,0.000199,2]
[350248010,1737735078927,-403.07759596,0.000199,2]
[350248011,1737735078937,-403.07759596,0.000199,2]
[350248012,1737735078947,-403.07759596,0.000199,2]
[350248013,1737735078959,-403.07759596,0.000199,2]
[350248014,1737735078969,-403.07759596,0.000199,2]
[350248015,1737735078979,-403.07759596,0.000199,2]
[350248016,1737735078990,-403.07759596,0.000199,2]
[350248017,1737735079000,-403.07759596,0.000199,2]
[350248018,1737735079011,-403.07759596,0.000199,2]
[350248019,1737735079156,-403.07759596,0.000199,2]
[350248020,1737735079168,-403.07759596,0.000199,2]
[350248021,1737735079178,-403.07759596,0.000199,2]
[350248022,1737735079188,-403.07759596,0.000199,2]
[350248023,1737735079198,-403.07759596,0.000199,2]
[350248024,1737735079210,-403.07759596,0.000199,2]
[350248025,1737735079220,-403.07,0.000199,2]
[350248026,1737735079230,-1065.30847412,0.000199,2]
[350248027,1737735079241,-1065.30847412,0.000199,2]
[350248028,1737735079251,-1065.30847412,0.000199,2]
[350248029,1737735079261,-1065.30847412,0.000199,2]
[350248030,1737735079272,-1065.30847412,0.000199,2]
[350248031,1737735079282,-1065.30847412,0.000199,2]
[350248032,1737735079292,-1065.30847412,0.000199,2]
[350248033,1737735079302,-1065.30847412,0.000199,2]
[350248034,1737735079312,-1065.30847412,0.000199,2]
[350248035,1737735079322,-1065.30847412,0.000199,2]
[350248036,1737735079333,-1065.30847412,0.000199,2]
[350248037,1737735079343,-1065.30847412,0.000199,2]
[350248038,1737735079352,-1065.30847412,0.000199,2]
[350248039,1737735079362,-1065.30847412,0.000199,2]
[350248040,1737735079372,-1065.30847412,0.000199,2]
[350248041,1737735079382,-1065.30847412,0.000199,2]
[350248042,1737735079392,-1065.30847412,0.000199,2]
[350248043,1737735079403,-1065.30847412,0.000199,2]
[350248044,1737735079413,-1065.30847412,0.000199,2]
[350248045,1737735079423,-1065.3,0.000199,2]
[350248046,1737735079433,-570.69663363,0.000199,2]
[350248047,1737735079443,-570.69663363,0.000199,2]
[350248048,1737735079453,-570.69663363,0.000199,2]
[350248049,1737735079463,-570.69663363,0.000199,2]
[350248050,1737735079473,-570.69663363,0.000199,2]
[350248051,1737735079483,-570.69663363,0.000199,2]
[350248052,1737735079492,-570.69663363,0.000199,2]
[350248053,1737735079503,-570.69663363,0.000199,2]
[350248054,1737735079514,-570.69663363,0.000199,2]
[350248055,1737735079524,-570.69663363,0.000199,2]
[350248056,1737735079534,-570.69663363,0.000199,2]
[350248057,1737735079544,-570.69663363,0.000199,2]
[350248058,1737735079555,-570.69663363,0.000199,2]
[350248059,1737735079564,-570.69663363,0.000199,2]
[350248060,1737735079574,-570.69663363,0.000199,2]
[350248061,1737735079583,-570.69663363,0.000199,2]
[350248062,1737735079593,-570.69663363,0.000199,2]
[350248063,1737735079603,-570.69663363,0.000199,2]
[350248064,1737735079613,-570.69663363,0.000199,2]
[350248065,1737735079623,-570.69,0.000199,2]
[350248066,1737735079632,-179.68985846,0.000199,2]
[350248067,1737735079642,-150.0,0.00019918,2]
[350248068,1737735079651,-150.0,0.00019918,2]
[350248069,1737735079661,-150.0,0.00019918,2]
[350248070,1737735079671,-150.0,0.00019918,2]
[350248071,1737735079680,-1000.0,0.00019921,2]
[350248072,1737735079690,-503.4722932,0.00019921,2]
[350248073,1737735079700,-1002.57171463,0.00019921,2]
[350248074,1737735079711,-1002.56754066,0.00019921,2]
[350248075,1737735079721,-250.0,0.00019921,2]
[350248076,1737735079731,-150.0,0.00019921,4]
[350248077,1737735079740,-150.0,0.00019921,4]
[350248078,1737735079750,-509.51,0.00019925,2]
[350248079,1737735079760,-577.72,0.00019925,2]
[350248080,1737735079770,-580.64,0.00019925,2]
[350248081,1737735079780,-679.78,0.00019925,2]
[350248082,1737735079791,-1705.53,0.00019925,2]
[350248083,1737735079801,-2554.5,0.00019925,2]
[350248084,1737735079811,-676.513947,0.00019925,2]
[350248085,1737735079822,-500.0,0.00019925,2]
[350248086,1737735079834,-956.9,0.00019925,2]
[350248087,1737735079844,-1945.88,0.00019925,2]
[350248088,1737735079855,-2012.13,0.00019925,2]
[350248089,1737735079865,-622.12,0.00019925,2]
[350248090,1737735079875,-846.729176,0.00019925,2]
[350248091,1737735079889,-1583.64,0.00019925,2]
[350248092,1737735079899,-564.16,0.00019925,2]
[350248093,1737735079909,-1121.35,0.00019925,2]
[350248094,1737735079918,-871.63,0.00019925,2]
[350248095,1737735079930,-1370.61,0.00019925,2]
[350248096,1737735079940,-705.29,0.00019925,2]
[350248097,1737735079950,-1962.44,0.00019925,2]
[350248098,1737735079963,-718.17,0.00019925,2]
[350248099,1737735079973,-619.05,0.00019925,2]
[350248100,1737735079984,-865.04,0.00019925,2]
[350248101,1737735079994,-2217.77,0.00019925,2]
[350248102,1737735080004,-722.1,0.00019925,2]
[350248103,1737735080015,-2901.51,0.00019925,2]
[350248104,1737735080025,-562.1,0.00019925,2]
[350248105,1737735080034,-503.38,0.00019925,2]
[350248106,1737735080045,-1511.51,0.00019925,2]
[350248107,1737735080054,-500.0,0.00019925,2]
[350248108,1737735080065,-1656.27,0.00019925,2]
[350248109,1737735080074,-831.3,0.00019925,2]
[350248110,1737735080084,-1027.33,0.00019925,2]
[350248111,1737735080094,-1185.98,0.00019925,2]
[350248112,1737735080104,-985.79,0.00019925,2]
[350248113,1737735080114,-1080.47,0.00019925,2]
[350248114,1737735080123,-2108.39,0.00019925,2]
[350248115,1737735080134,-838.77,0.00019925,2]
[350248116,1737735080144,-538.96,0.00019925,2]
[350248117,1737735080154,-500.0,0.00019925,2]
[350248118,1737735080164,-578.58,0.00019925,2]
[350248119,1737735080175,-2039.23,0.00019925,2]
[350248120,1737735080185,-1068.15,0.00019925,2]
[350248121,1737735080195,-1155.96,0.00019925,2]
[350248122,1737735080206,-2273.11,0.00019925,2]
[350248123,1737735080216,-1338.57,0.00019925,2]
[350248124,1737735080226,-3483.22,0.00019925,2]
[350248125,1737735080236,-500.0,0.00019925,2]
[350248126,1737735080247,-872.95,0.00019925,2]
[350248127,1737735080258,-1147.06,0.00019925,2]
[350248128,1737735080268,-500.0,0.00019925,2]
[350248129,1737735080278,-1277.07,0.00019925,2]
[350248130,1737735080288,-2989.39,0.00019925,2]
[350248131,1737735080298,-644.25,0.00019925,2]
[350248132,1737735080308,-871.11,0.00019925,2]
[350248133,1737735080318,-500.0,0.00019926,2]
[350248134,1737735080327,-500.0,0.00019926,2]
[350248135,1737735080337,-500.0,0.00019926,2]
[350248136,1737735080347,-500.0,0.00019926,2]
[350248137,1737735080356,-500.0,0.00019926,2]
[350248138,1737735080367,-677.93,0.00019926,2]
[350248139,1737735080377,-500.0,0.00019926,2]
[350248140,1737735080387,-660.08,0.00019926,2]
[350248141,1737735080397,-517.6124656,0.00019926,2]
[350248142,1737735080407,-589.35,0.00019926,2]
[350248143,1737735080416,-500.0,0.00019926,2]
[350248144,1737735080427,-500.0,0.00019926,2]
[350248145,1737735080436,-770.43,0.00019926,2]
[350248146,1737735080446,-500.0,0.00019926,2]
[350248147,1737735080456,-500.0,0.00019926,2]
[350248148,1737735080466,-500.0,0.00019926,2]
[350248149,1737735080475,-513.79,0.00019926,2]
[350248150,1737735080485,-500.0,0.00019926,2]
[350248151,1737735080495,-580.89,0.00019926,2]
[350248152,1737735080506,-614.29,0.00019926,2]
[350248153,1737735080516,-500.0,0.00019926,2]
[350248154,1737735080526,-500.0,0.00019926,2]
[350248155,1737735080536,-500.0,0.00019926,2]
[350248156,1737735080546,-566.81,0.00019926,2]
[350248157,1737735080556,-767.86,0.00019926,2]
[350248158,1737735080566,-654.02,0.00019926,2]
[350248159,1737735080576,-500.0,0.00019926,2]
[350248160,1737735080716,-500.0,0.00019926,2]
[350248161,1737735080727,-500.0,0.00019926,2]
[350248162,1737735080737,-500.0,0.00019926,2]
[350248163,1737735080746,-479.67216383,0.00019926,2]
[350248164,1737735080757,-500.0,0.00019926,2]
[350248165,1737735080767,-500.0,0.00019926,2]
[350248166,1737735080777,-500.0,0.00019926,2]
[350248167,1737735080787,-500.0,0.00019926,2]
[350248168,1737735080797,-509.94,0.00019926,2]
[350248169,1737735080808,-500.0,0.00019926,2]
[350248170,1737735080823,-798.82,0.00019926,2]
[350248171,1737735080833,-652.05,0.00019926,2]
[350248172,1737735080844,-846.33,0.00019926,2]
[350248173,1737735080854,-770.06,0.00019926,2]
[350248174,1737735080864,-937.47,0.00019926,2]
[350248175,1737735080876,-672.05,0.00019926,2]
[350248176,1737735080887,-500.0,0.00019926,2]
[350248177,1737735080897,-692.99,0.00019926,2]
[350248178,1737735080908,-500.0,0.00019926,2]
[350248179,1737735080919,-500.0,0.00019926,2]
[350248180,1737735080930,-500.0,0.00019926,2]
[350248181,1737735080940,-500.0,0.00019926,2]
[350248182,1737735080950,-1011.61,0.00019926,2]
[350248183,1737735080962,-500.0,0.00019926,2]
[350248184,1737735080971,-500.0,0.00019926,2]
[350248185,1737735080981,-500.0,0.00019926,2]
[350248186,1737735080991,-954.97,0.00019926,2]
[350248187,1737735081002,-594.05,0.00019926,2]
[350248188,1737735081012,-614.05,0.00019926,2]
[350248189,1737735081021,-652.47,0.00019926,2]
[350248190,1737735081031,-323.24797508,0.00019926,2]
[350248191,1737735081041,-849.3,0.00019926,2]
[350248192,1737735081051,-708.17,0.00019926,2]
[350248193,1737735081062,-511.38,0.00019926,2]
[350248194,1737735081073,-833.01,0.00019926,2]
[350248195,1737735081083,-681.69,0.00019926,2]
[350248196,1737735081093,-560.31,0.00019926,2]
[350248197,1737735081104,-500.0,0.00019926,2]
[350248198,1737735081113,-805.26,0.00019926,2]
[350248199,1737735081123,-697.85,0.00019926,2]
[350248200,1737735081133,-500.0,0.00019926,2]
[350248201,1737735081143,-500.0,0.00019926,2]
[350248202,1737735081154,-580.02,0.00019926,2]
[350248203,1737735081163,-500.0,0.00019926,2]
[350248204,1737735081173,-669.97,0.00019926,2]
[350248205,1737735081184,-500.0,0.00019926,7]
[350248206,1737735081194,-500.0,0.00019926,2]
[350248207,1737735081204,-500.0,0.00019926,2]
[350248208,1737735081215,-556.37,0.00019926,2]
[350248209,1737735081226,-500.0,0.00019926,2]
[350248210,1737735081236,-500.0,0.00019926,2]
[350248211,1737735081246,-1151.25,0.00019926,2]
[350248212,1737735081258,-582.4,0.00019926,2]
[350248213,1737735081268,-500.0,0.00019926,2]
[350248214,1737735081278,-1417.9,0.00019926,2]
[350248215,1737735081289,-656.44,0.00019926,2]
[350248216,1737735081299,-582.99,0.00019926,2]
[350248217,1737735081309,-544.3,0.00019926,2]
[350248218,1737735081320,-500.0,0.00019926,2]
[350248219,1737735081331,-1083.19,0.00019926,2]
[350248220,1737735081341,-634.65,0.00019926,2]
[350248221,1737735081351,-1858.23,0.00019926,2]
[350248222,1737735081361,-516.81,0.00019926,2]
[350248223,1737735081372,-1003.94,0.00019926,2]
[350248224,1737735081382,-500.0,0.00019926,2]
[350248225,1737735081402,-695.07,0.00019926,2]
[350248226,1737735081420,-530.99,0.00019926,2]
[350248227,1737735081442,-4029.1,0.00019926,2]
[350248228,1737735081465,-500.0,0.00019926,2]
[350248229,1737735081483,-1624.84,0.00019926,2]
[350248230,1737735081507,-672.83,0.00019926,2]
[350248231,1737735081528,-500.0,0.00019926,2]
[350248232,1737735081551,-2230.2,0.00019926,2]
[350248233,1737735081576,-500.0,0.00019926,2]
[350248234,1737735081594,-500.0,0.00019926,2]
[350248235,1737735081615,-559.05,0.00019926,2]
[350248236,1737735081631,-1209.66,0.00019926,2]
[350248237,1737735081654,-1414.61,0.00019926,2]
[350248238,1737735081671,-500.0,0.00019926,2]
[350248239,1737735081693,-500.0,0.00019926,2]
[350248240,1737735081712,-3342.18,0.00019926,2]
[350248241,1737735081730,-500.0,0.00019926,2]
[350248242,1737735081748,-2092.8,0.00019926,2]
[350248243,1737735081770,-521.83,0.00019926,2]
[350248244,1737735081789,-1013.22,0.00019926,2]
[350248245,1737735081807,-500.0,0.00019926,2]
[350248246,1737735081826,-500.0,0.00019926,2]
[350248247,1737735081846,-926.77,0.00019926,2]
[350248248,1737735081866,-500.0,0.00019926,2]
[350248249,1737735081889,-926.0,0.00019926,2]
[350248250,1737735081908,-6114.66,0.00019926,2]
[350248251,1737735081928,-500.0,0.00019927,2]
[350248252,1737735081945,-500.0,0.00019927,2]
[350248253,1737735081964,-500.0,0.00019927,2]
[350248254,1737735081982,-500.0,0.00019927,2]
[350248255,1737735082000,-747.3,0.00019927,2]
[350248256,1737735082021,-578.69,0.00019927,2]
[350248257,1737735082040,-550.89,0.00019927,2]
[350248258,1737735082060,-500.0,0.00019927,2]
[350248259,1737735082080,-500.0,0.00019927,2]
[350248260,1737735082099,-500.0,0.00019927,2]
[350248261,1737735082117,-150.0,0.00019929,4]
[350248262,1737735082135,-177.66,0.00019932,2]
[350248263,1737735082154,-623.66119626,0.00019934,2]
[350248264,1737735082173,-500.0,0.00019947,2]
[350248265,1737735082194,-500.0,0.00019963,2]
[350248266,1737735082213,-798.61,0.00019963,2]
[350248267,1737735082233,-2156.11,0.00019963,2]
[350248268,1737735082252,-500.0,0.00019963,2]
[350248269,1737735082271,-927.0,0.00019963,2]
[350248270,1737735082291,-500.0,0.00019963,2]
[350248271,1737735082310,-544.0,0.00019963,2]
[350248272,1737735082328,-500.0,0.00019963,2]
[350248273,1737735082347,-517.74,0.00019963,2]
[350248274,1737735082366,-1223.83,0.00019963,2]
[350248275,1737735082385,-1716.18,0.00019963,2]
[350248276,1737735082403,-1769.78,0.00019963,2]
[350248277,1737735082421,-617.72,0.00019963,2]
[350248278,1737735082440,-3582.9,0.00019963,2]
[350248279,1737735082463,-6343.0,0.00019963,2]
[350248280,1737735082483,-851.26,0.00019963,2]
[350248281,1737735082501,-592.94,0.00019963,2]
[350248282,1737735082523,-500.0,0.00019963,2]
[350248283,1737735082545,-805.09,0.00019963,2]
[350248284,1737735082567,-1086.75,0.00019963,2]
[350248285,1737735082589,-1200.3,0.00019963,2]
[350248286,1737735082609,-500.0,0.00019963,2]
[350248287,1737735082629,-1000.0,0.00019963,2]
[350248288,1737735082649,-514.0,0.0001997,2]
[350248289,1737735082668,-355.02,0.0001997,2]
[350248290,1737735082870,-500.0,0.00019971,2]
[350248291,1737735082884,-150.0,0.00019973,4]
[350248292,1737735082896,-3000.0,0.00019978,11]
[350248293,1737735082906,-150.0,0.00019998,4]
[350248294,1737735082919,-99330.72464048,0.00019999,2]
[350248295,1737735082930,-31157.63925267,0.0002,6]
[350248296,1737735082941,-20076.0,0.0002,7]
[350248297,1737735082952,-163.49949032,0.0002,7]
[350248298,1737735082962,-18348.85342863,0.0002,2]
[350248299,1737735082972,-1198416.38953474,0.0002,2]
[350248300,1737735082982,-10000.0,0.0002,2]
[350248301,1737735082993,-600.0,0.0002,3]
[350248302,1737735083007,-6115.72185212,0.0002,4]
[350248303,1737735083017,-112360.60015472,0.0002,4]
[350248304,1737735083028,-200.0,0.0002,10]
[350248305,1737735083039,-913.35316736,0.0002,4]
[350248306,1737735083050,-1000.0,0.0002,2]
[350248307,1737735083060,-7473.713807,0.0002,7]
[350248308,1737735083071,-2796.211333,0.0002,7]
[350248309,1737735083082,-1421.550324,0.0002,7]
[350248310,1737735083092,-45688.56899903,0.0002,2]
[350248311,1737735083102,-600.0,0.0002,2]
[350248312,1737735083111,-640.62190857,0.0002,2]
[350248313,1737735083122,-113634.91230366,0.0002,2]
[350248314,1737735083133,-4258.24929654,0.0002,2]
[350248315,1737735083143,-1392.13307931,0.0002,5]
[350248316,1737735083155,-7500.0,0.0002,2]
[350248317,1737735083165,-3829.56086832,0.0002,2]
[350248318,1737735083176,-8046.3584037,0.0002,2]
[350248319,1737735083187,-1013.0,0.0002,6]
[350248320,1737735083197,-2147.55212195,0.0002,2]
[350248321,1737735083208,-298.05009534,0.0002,2]
[350248322,1737735083219,-5000.0,0.0002,15]
[350248323,1737735083229,-55482.84648544,0.0002,2]
[350248324,1737735083239,-2110.0,0.0002,2]
[350248325,1737735083249,-2051.59388539,0.0002,4]
[350248326,1737735083265,-900.0,0.0002,21]
[350248327,1737735083279,-1238.64735001,0.0002,2]
[350248328,1737735083289,-11084.86480306,0.0002,2]
[350248329,1737735083300,-999.37904435,0.0002,2]
[350248330,1737735083310,-380.0,0.0002,2]
[350248331,1737735083320,-888.0,0.0002,2]
[350248332,1737735083332,-20000.0,0.0002,2]
[350248333,1737735083343,-138869.22005936,0.0002,2]
[350248334,1737735083354,-2159.22012107,0.0002,2]
[350248335,1737735083364,-3707.91057266,0.0002,2]
[350248336,1737735083374,-2093.0,0.0002,2]
[350248337,1737735083384,-1000.0,0.0002,2]
[350248338,1737735083395,-500.0,0.0002,2]
[350248339,1737735083406,-500.0,0.0002,2]
[350248340,1737735083416,-500.0,0.0002,2]
[350248341,1737735083427,-500.0,0.0002,2]
[350248342,1737735083439,-500.0,0.0002,2]
[350248343,1737735083449,-500.0,0.0002,2]
[350248344,1737735083459,-500.0,0.0002,2]
[350248345,1737735083470,-1000.0,0.0002,2]
[350248346,1737735083480,-1000.0,0.0002,2]
[350248347,1737735083490,-500.0,0.0002,2]
[350248348,1737735083500,-500.0,0.0002,2]
[350248349,1737735083512,-18199.38,0.0002,6]
[350248350,1737735083523,-500.0,0.0002,2]
[350248351,1737735083534,-500.0,0.0002,2]
[350248352,1737735083544,-528.07354905,0.0002,4]
[350248353,1737735083554,-2623.0,0.0002,5]
[350248354,1737735083564,-2000.0,0.0002,2]
[350248355,1737735083574,-2000.0,0.0002,2]
[350248356,1737735083584,-91002.84078124,0.0002,2]
[350248357,1737735083594,-1467.30574283,0.0002,2]
[350248358,1737735083604,-79698.85022927,0.0002,2]
[350248359,1737735083614,-100434.49342129,0.0002,2]
[350248360,1737735083624,-14754.55507018,0.0002,14]
[350248361,1737735083634,-5199.88990883,0.0002,5]
[350248362,1737735083645,-900.1419,0.0002,2]
[350248363,1737735083655,-8463.69972221,0.0002,3]